fUST/lending_fUST_20240811
["ID","MTS","AMOUNT","RATE_DAILY","PERIOD"]
[334603432,1723321849830,-500.0,0.00020821,3]
[334603433,1723321849839,-500.0,0.00020821,3]
[334603434,1723321849849,-500.0,0.00020821,3]
[334603435,1723321849859,-500.0,0.00020821,3]
[334603436,1723321849868,-500.0,0.00020821,3]
[334603437,1723321849878,-657.64,0.00020821,3]
[334603438,1723321849887,-506.06967238,0.00020821,3]
[334603439,1723321849899,-501.7545629,0.00020821,3]
[334603440,1723321849910,-500.0,0.00020821,3]
[334603441,1723321849922,-500.0,0.00020821,3]
[334603442,1723321849933,-883.7,0.00020821,3]
[334603443,1723321849943,-503.05407785,0.00020821,3]
[334603444,1723321849955,-500.0,0.00020821,3]
[334603445,1723321849966,-500.0,0.00020821,3]
[334603446,1723321849975,-500.0,0.00020821,3]
[334603447,1723321849985,-500.0,0.00020821,3]
[334603448,1723321849995,-1038.06,0.00020821,3]
[334603449,1723321850005,-500.0,0.00020821,3]
[334603450,1723321850015,-500.0,0.00020821,3]
[334603451,1723321850024,-500.0,0.00020821,3]
[334603452,1723321850034,-500.0,0.00020821,3]
[334603453,1723321850043,-500.0,0.00020821,3]
[334603454,1723321850052,-1109.43,0.00020821,3]
[334603455,1723321850062,-500.0,0.00020821,3]
[334603456,1723321850072,-1111.0,0.00020821,3]
[334603457,1723321850082,-500.0,0.00020821,3]
[334603458,1723321850094,-500.0,0.00020821,3]
[334603459,1723321850105,-500.0,0.00020821,3]
[334603460,1723321850115,-500.0,0.00020821,3]
[334603461,1723321850127,-1008.03,0.00020821,3]
[334603462,1723321850137,-500.0,0.00020821,3]
[334603463,1723321850148,-500.0,0.00020821,3]
[334603464,1723321850158,-502.45261478,0.00020821,3]
[334603465,1723321850168,-500.0,0.00020821,3]
[334603466,1723321850179,-560.96,0.00020821,3]
[334603467,1723321850189,-500.0,0.00020821,3]
[334603468,1723321850198,-511.13313057,0.00020821,3]
[334603469,1723321850207,-500.0,0.00020821,3]
[334603470,1723321850217,-742.43,0.00020821,3]
[334603471,1723321850226,-1190.33,0.00020821,3]
[334603472,1723321850235,-386.50973709,0.00020821,3]
[334603473,1723321850245,-335.63509456,0.00020821,3]
[334603475,1723322742170,-381.828593,0.00018904,2]
[334603476,1723322742193,-97.83066839,0.0001895,2]
[334603477,1723322779269,159.00942,0.00014247,2]
[334603480,1723322844093,-428.2670544,0.00019102,2]
[334603847,1723323040580,-378.586325,0.00018904,2]
[334603849,1723323040592,-1815.75967709,0.00019102,2]
[334603851,1723323040603,-214.32726,0.00019103,2]
[334603853,1723323040615,-211.7953775,0.00019121,2]
[334603855,1723323040624,-154.76012181,0.00019155,2]
[334603857,1723323040634,-166.319857,0.00019178,2]
[334603859,1723323040644,-210.07202993,0.00019451,2]
[334603862,1723323040655,-1363.91466198,0.00019451,2]
[334603864,1723323040665,-300.0,0.00019999,2]
[334603866,1723323040676,-300.0,0.00019999,2]
[334603868,1723323040686,-10160.987828,0.0002,2]
[334603870,1723323040696,-154.76012181,0.0002,2]
[334603872,1723323040706,-150.0,0.0002,2]
[334603874,1723323040716,-156.4788062,0.0002,2]
[334603876,1723323040728,-1444.82566449,0.0002,2]
[334603879,1723323040739,-427.3467713,0.0002,2]
[334603881,1723323040750,-404.94250281,0.0002,2]
[334603883,1723323040760,-214.32726,0.00020099,2]
[334603885,1723323040770,-150.0,0.0002023,2]
[334603887,1723323040779,-507.0,0.0002023,2]
[334603889,1723323040789,-1412.0,0.0002023,2]
[334603891,1723323040798,-17.03205871,0.0002023,2]
[334604164,1723323043469,-236.28994129,0.0002023,2]
[334604166,1723323043481,-150.0,0.0002023,2]
[334604168,1723323043491,-160.0,0.0002047,3]
[334604170,1723323043501,-151.0,0.00020604,2]
[334604172,1723323043511,-751.19802044,0.00020626,2]
[334604174,1723323043521,-598.0,0.000207,2]
[334604176,1723323043530,-151.0,0.00020718,2]
[334604178,1723323043540,-1853.770095,0.00020721,2]
[334604180,1723323043552,-16755.88577746,0.00020721,2]
[334604491,1723323046591,-85.16763155,0.00020721,2]
[334605143,1723323677669,159.00942,0.00014247,2]
[334605144,1723323709174,13483.3281496,0.00014247,2]
[334605145,1723323711496,4711.98211783,0.00014247,2]
[334605146,1723323714570,3608.62140677,0.00014247,2]
[334605148,1723323947139,-193.49547103,0.00017019,2]
[334605149,1723323947163,-190.41352714,0.00018488,2]
[334605150,1723323950105,-4.42241686,0.00018488,2]
[334605151,1723323950127,-154.76012181,0.00018825,2]
[334605152,1723323950149,-5.94727151,0.00018904,2]
[334605153,1723324053100,-359.359644,0.00018904,2]
[334605154,1723324053124,-152.4202007,0.00018997,2]
[334605177,1723324232585,-179.7746105,0.00018823,2]
[334605178,1723324232595,-5158.10110959,0.00018989,2]
[334605179,1723324232604,-278.0,0.00018997,2]
[334605180,1723324232614,-300.0,0.00018997,2]
[334605181,1723324232623,-11296.02831351,0.00018998,2]
[334605193,1723324238787,-723.37166933,0.00018998,2]
[334605194,1723324238803,-5182.50405076,0.00018998,2]
[334605195,1723324238813,-170.767705,0.00019738,2]
[334605196,1723324238824,-178.835217,0.00019738,2]
[334605197,1723324238835,-220.646078,0.00019738,2]
[334605198,1723324238846,-620.00027535,0.00019887,2]
[334605199,1723324238856,-657.29826785,0.000199,2]
[334605200,1723324238868,-4789.91299995,0.0002,2]
[334605201,1723324238891,-13676.21000549,0.0002,2]
[334605202,1723324238902,-225.1960746,0.0002,2]
[334605203,1723324238912,-1444.82566449,0.0002,2]
[334605204,1723324238924,-156.4788062,0.0002,2]
[334605205,1723324238934,-427.3467713,0.0002,2]
[334605206,1723324238944,-170.767705,0.00020067,2]
[334605207,1723324238955,-1412.0,0.00020152,2]
[334605209,1723324238967,-150.0,0.0002023,2]
[334605210,1723324238978,-150.0,0.0002023,2]
[334605212,1723324238988,-507.0,0.0002023,2]
[334605214,1723324238998,-170.767705,0.00020396,2]
[334605215,1723324239010,-150.112233,0.000207,3]
[334605216,1723324239020,-8844.24654498,0.00020711,11]
[334605217,1723324239031,-55156.0611238,0.00020711,2]
[334605218,1723324239043,-1959.02576919,0.00020711,2]
[334605219,1723324239054,-1627.09162866,0.00020721,2]
[334605220,1723324239064,-4620.75317418,0.00020721,2]
[334605221,1723324239075,-3644.30367995,0.00020721,2]
[334605245,1723324240660,-6850.61263615,0.00020721,2]
[334605246,1723324240670,-4184.96471672,0.00020721,2]
[334605247,1723324240680,-795.39307172,0.00020721,2]
[334605248,1723324240689,-1668.3930855,0.00020721,2]
[334605249,1723324240699,-23388.35566053,0.00020721,2]
[334605371,1723324705892,159.00942,0.00014247,2]
[334605376,1723324927591,847.02366628,0.00014247,2]
[334605377,1723325020599,564.68244419,0.00014247,2]
[334605378,1723325106608,470.56870349,0.00014247,2]
[334605380,1723325138105,-245.45777017,0.00017269,2]
[334605381,1723325138126,-231.53671139,0.00017269,2]
[334605382,1723325138147,-79.59128051,0.00018,2]
[334605383,1723325140110,-152.41298102,0.00018,2]
[334605392,1723325240193,-93.76780764,0.00018,2]
[334605393,1723325240215,-245.16629452,0.00018,2]
[334605394,1723325240240,-287.0,0.00018844,2]
[334605395,1723325240262,-196.33607191,0.00018845,2]
[334605450,1723325431764,-287.06,0.00018845,2]
[334605453,1723325431779,-672.41318808,0.00018845,2]
[334605500,1723325438157,-240.15874628,0.00018845,2]
[334605501,1723325438168,-245.16629452,0.00018845,2]
[334605502,1723325438177,-2108.95048088,0.00018845,2]
[334605503,1723325438187,-404.72502915,0.00018845,2]
[334605504,1723325438197,-3785.86407866,0.00018845,2]
[334605505,1723325438207,-19473.22221664,0.00018845,2]
[334605506,1723325438216,-8063.80564773,0.00018845,2]
[334605507,1723325438226,-194.835944,0.00018897,2]
[334605508,1723325438237,-341.391661,0.00018904,2]
[334605509,1723325438250,-179.774618,0.00018928,2]
[334605510,1723325438260,-321.0590436,0.00018977,2]
[334605511,1723325438270,-283.15029162,0.00019155,2]
[334605512,1723325438281,-179.440609,0.00019738,2]
[334605513,1723325438291,-208.167696,0.00019738,2]
[334605514,1723325438300,-194.971646,0.00019738,2]
[334605515,1723325438309,-24167.68047315,0.0001999,2]
[334605570,1723325440109,-5325.94787652,0.0001999,2]
[334605573,1723325440121,-153.0,0.0002,2]
[334605575,1723325440136,-156.42647328,0.0002,2]
[334605577,1723325440151,-225.05350809,0.0002028,2]
[334605579,1723325440166,-507.0,0.00020324,2]
[334605581,1723325440179,-1412.0,0.00020324,2]
[334605584,1723325440190,-160.0,0.00020578,3]
[334605586,1723325440204,-183.29217435,0.00020621,2]
[334605588,1723325440217,-151.0,0.0002072,2]
[334605591,1723325440232,-10494.9163161,0.00020721,2]
[334605593,1723325440249,-1555.48438052,0.00020721,2]
[334605798,1723325446702,-150.0,0.00020263,2]
[334605799,1723325446712,-71.60724814,0.00020721,2]
[334605800,1723325446721,-4184.96471672,0.00020721,2]
[334605801,1723325446731,-1501.55377695,0.00020721,2]
[334605802,1723325446740,-13500.16223654,0.00020721,2]
[334605803,1723325484481,196.0,9.9e-05,2]
[334605804,1723325484502,77.37336231,9.9e-05,2]
[334605805,1723325501793,110.78663769,9.9e-05,2]
[334605806,1723325501814,53.53774341,9.9e-05,2]
[334605807,1723325512779,165.91789162,9.9e-05,2]
[334605808,1723325512801,3069.53576722,9.9e-05,2]
[334605809,1723325512825,16242.77013233,9.9e-05,2]
[334605812,1723325518045,273.37336231,9.9e-05,2]
[334605814,1723325528636,245.16629452,9.9e-05,2]
[334605815,1723325537427,3785.86407866,9.9e-05,2]
[334605816,1723325537696,3611.12283265,9.9e-05,2]
[334605817,1723325538641,2108.95048088,9.9e-05,2]
[334605818,1723325545922,281.2733069,9.9e-05,2]
[334605819,1723325548777,19468.22064211,0.00012,2]
[334605820,1723325554558,4713.6088757,9.9e-05,2]
[334605821,1723325571126,245.16629452,0.00012,2]
[334605822,1723325574197,3611.12283265,0.00012,2]
[334605823,1723325576930,1681.38980156,0.00012,2]
[334605824,1723325593710,14221.80588628,0.00012,2]
[334605826,1723325597804,19473.22221664,0.00012,2]
[334605827,1723325599456,3346.36227368,0.00012,2]
[334605828,1723325600153,543.08033697,0.00012,2]
[334605829,1723325607128,245.16629452,0.00012,2]
[334605831,1723325608053,4096.38945257,0.00012,2]
[334605832,1723325608450,342.05014288,0.00012,2]
[334605833,1723325613145,154.89923821,0.00012,2]
[334605834,1723325614559,506.48190828,0.00012,2]
[334605835,1723325619341,256.78731711,0.00012,2]
[334605836,1723325637808,812.87089147,0.00014545,2]
[334605837,1723325637933,3786.54291341,0.00012,2]
[334605838,1723325639198,186.66379482,0.00012,2]
[334605839,1723325642299,157.64271038,0.00014545,2]
[334605840,1723325649951,18667.65378826,0.00014545,2]
[334605841,1723325652246,155.0971341,0.00014545,2]
[334605842,1723325653669,378.67407966,0.00014545,2]
[334605843,1723325662401,159.193598,0.00014247,2]
[334605844,1723325664074,1867.05423378,0.00014545,2]
[334605845,1723325674129,245.16629452,0.00014545,2]
[334605846,1723325802545,154.77569405,0.00014545,2]
[334605847,1723325839510,309.45844772,0.00014545,2]
[334605848,1723325855828,174.37281606,0.00014545,2]
[334605849,1723325864474,3785.18524391,0.00014545,2]
[334605853,1723326067649,245.16629452,0.00014545,2]
[334605854,1723326166156,245.16629452,0.00014545,2]
[334605855,1723326262264,163.722316,0.00014247,2]
[334605856,1723326268188,245.16629452,0.00014545,2]
[334605857,1723326354149,-297.36849762,0.00016159,2]
[334605858,1723326383195,245.16629452,0.00014545,2]
[334605860,1723326454090,-808.5209824,0.00016095,2]
[334605861,1723326454112,-277.22173043,0.000165,2]
[334605862,1723326454135,-430.23228854,0.00017379,2]
[334605863,1723326454157,-196.46943428,0.00017379,2]
[334605864,1723326454179,-259.13492621,0.00017403,2]
[334605865,1723326473198,371.74927574,0.00014545,2]
[334605867,1723326545084,-154.79103211,0.00017403,2]
[334605868,1723326545108,-610.9118254,0.00017515,2]
[334605869,1723326545131,-300.0,0.00017629,2]
[334605870,1723326545152,-250.0,0.0001763,2]
[334605871,1723326545174,-14750.18123322,0.0001763,2]
[334605872,1723326545198,-544.60579217,0.00017748,2]
[334605873,1723326567390,-336.28374313,0.00017748,2]
[334605874,1723326567416,-217.628059,0.00018019,2]
[334605875,1723326567444,-194.513158,0.00018559,2]
[334605876,1723326567471,-194.513158,0.0001859,2]
[334605877,1723326567498,-194.513158,0.00018621,2]
[334605907,1723326633699,-194.513158,0.00018652,2]
[334605909,1723326633710,-67.00442545,0.00018904,2]
[334605951,1723326638199,-310.42807155,0.00018904,2]
[334605952,1723326638209,-664.2961566,0.0001895,2]
[334605953,1723326638218,-2095.28038272,0.00018999,2]
[334605954,1723326638228,-154.84363402,0.00019139,2]
[334605955,1723326638237,-6439.5209419,0.00019153,2]
[334605956,1723326638247,-300.0,0.00019166,2]
[334605957,1723326638256,-3088.98876635,0.00019167,2]
[334605958,1723326638266,-354.30643654,0.00019177,2]
[334605959,1723326638275,-163.582511,0.00019178,2]
[334605960,1723326638286,-1116.8634271,0.00019256,2]
[334605961,1723326638296,-1091.99358002,0.00019256,2]
[334605962,1723326638306,-1842.12174007,0.00019256,2]
[334605963,1723326638316,-240.84967759,0.00019477,2]
[334605964,1723326638326,-526.48,0.00019821,7]
[334605965,1723326638335,-500.0,0.00019821,7]
[334605966,1723326638345,-500.0,0.00019821,7]
[334605967,1723326638354,-511.56,0.00019821,7]
[334605968,1723326638363,-620.00200517,0.00019838,2]
[334605969,1723326638373,-1960.29016527,0.0001996,2]
[334605970,1723326638385,-1178.20479994,0.0001996,2]
[334605971,1723326638398,-1950.0,0.0001996,2]
[334605990,1723326640679,-15558.24511326,0.0001996,2]
[334606003,1723326643147,-1256.15349478,0.00019102,2]
[334606020,1723326646341,-3982.80274701,0.00019102,2]
[334606021,1723326646350,-22841.38609385,0.0001996,2]
[334606022,1723326683900,273.37336231,9.9e-05,2]
[334606026,1723326767248,156.64123903,0.00012,2]
[334606027,1723326770274,1067.5370934,0.00012,2]
[334606028,1723326771194,522.39318645,0.00012,2]
[334606029,1723326780410,678.52957131,0.00012,2]
[334606030,1723326787812,1091.99358002,0.00014545,2]
[334606031,1723326789538,342.52439147,0.00012,2]
[334606032,1723326794026,479.70011217,0.00014545,2]
[334606033,1723326797784,502.24554147,0.00015,2]
[334606034,1723326801319,281.26808939,0.00014545,2]
[334606035,1723326802849,600.8534117,0.00014545,2]
[334606036,1723326803061,273.37336231,9.9e-05,2]
[334606037,1723326814919,159.27209445,0.00014545,2]
[334606038,1723326828035,234.95688653,0.00014545,2]
[334606039,1723326830405,319.72766707,0.00014545,2]
[334606040,1723326830565,188.2335741,0.00014545,2]
[334606041,1723326832141,1763.75242219,0.00014545,2]
[334606042,1723326834058,209.86849569,0.00014545,2]
[334606043,1723326898247,160.564273,0.00014247,2]
[334606045,1723327132524,1630.23174338,0.00014247,2]
[334606046,1723327337927,164.632604,0.00014247,2]
[334606048,1723327540172,-483.44430943,0.00015952,2]
[334606049,1723327625086,-849.39914621,0.00016095,2]
[334606050,1723327625108,-38.67065021,0.00016309,2]
[334606051,1723327653148,-302.59507641,0.00018,2]
[334606052,1723327653169,-237.603597,0.00018315,2]
[334606053,1723327653189,-150.0,0.00018874,2]
[334606054,1723327653209,-358.560872,0.00018904,2]
[334606055,1723327653231,-269.52460831,0.00018911,2]
[334606056,1723327748118,-608.54927059,0.00016347,2]
[334606057,1723327752110,-2136.9947497,0.00018289,2]
[334606058,1723327809430,160.54035,0.00014247,2]
[334606107,1723327832250,-358.898174,0.00018904,2]
[334606108,1723327832260,-300.0,0.00018911,2]
[334606109,1723327832269,-9342.43384551,0.00018912,2]
[334606115,1723327838407,-668.89817409,0.00018912,2]
[334606116,1723327838418,-158.641351,0.00019178,2]
[334606117,1723327838427,-5169.85729757,0.00019452,2]
[334606118,1723327838438,-154.82482082,0.00019477,2]
[334606119,1723327838447,-150.0,0.00019545,2]
[334606120,1723327838457,-191.433445,0.00019738,2]
[334606121,1723327838467,-202.339818,0.00019738,2]
[334606122,1723327838477,-449.780521,0.00019738,2]
[334606123,1723327838486,-320.64881,0.00019738,2]
[334606124,1723327838495,-164.789857,0.00019738,2]
[334606125,1723327838504,-575.13598436,0.000199,2]
[334606126,1723327838514,-5101.21858448,0.0001996,2]
[334606127,1723327838523,-202.339818,0.00019984,2]
[334606128,1723327838532,-449.780521,0.00019984,2]
[334606129,1723327838542,-320.64881,0.00019984,2]
[334606130,1723327838551,-1875.09943832,0.0002,2]
[334606134,1723327838660,-53.71603438,0.0002,2]
[334606205,1723327846526,-8566.1008434,0.0002,2]
[334606206,1723327846535,-1627.09162866,0.0002,2]
[334606207,1723327846545,-1361.568089,0.0002,2]
[334606208,1723327846555,-290.84316921,0.0002001,2]
[334606209,1723327846564,-1412.0,0.00020169,2]
[334606210,1723327846574,-202.339818,0.00020231,2]
[334606211,1723327846585,-449.780521,0.00020231,2]
[334606212,1723327846594,-320.64881,0.00020231,2]
[334606213,1723327846604,-150.0,0.00020337,2]
[334606214,1723327846614,-150.0,0.00020337,2]
[334606215,1723327846623,-507.0,0.00020337,2]
[334606216,1723327846633,-151.0,0.00020342,2]
[334606217,1723327846642,-151.0,0.00020462,2]
[334606218,1723327846652,-1000.0,0.0002047,2]
[334606219,1723327846662,-202.339818,0.00020478,2]
[334606220,1723327846671,-320.64881,0.00020478,2]
[334606221,1723327846681,-449.780521,0.00020478,2]
[334606222,1723327846690,-1000.0,0.00020531,2]
[334606223,1723327846699,-151.0,0.00020582,2]
[334606224,1723327846709,-1000.0,0.00020624,2]
[334606225,1723327846719,-1000.0,0.00020689,2]
[334606226,1723327846728,-150.112233,0.000207,4]
[334606227,1723327846739,-151.0,0.00020701,2]
[334606228,1723327846750,-4422.12327249,0.00020701,11]
[334606229,1723327846760,-22293.23080527,0.00020701,2]
[334606230,1723327864405,778.35010836,0.00018,2]
[334606231,1723327864426,227.65968442,0.00018,2]
[334606235,1723328200181,273.37336231,9.9e-05,2]
[334606236,1723328310390,166.426355,0.00014247,2]
[334606237,1723328313147,1590.6447402,0.00012,2]
[334606238,1723328373739,190.4105277,9.9e-05,2]
[334606244,1723328599751,245.45777017,0.00014,2]
[334606245,1723328624032,231.53671139,0.00012,2]
[334606247,1723328719968,245.16629452,0.00014545,2]
[334606248,1723328728703,196.33607191,0.00014545,2]
[334606249,1723328770312,165.138287,0.00014247,2]
[334606252,1723328848100,-191.78822558,0.000179,2]
[334606253,1723328848122,-641.24341513,0.00018,2]
[334606275,1723328955219,-300.0,0.00017999,2]
[334606276,1723328955243,-2295.20105538,0.00018,2]
[334606277,1723328955265,-1364.15976013,0.00018,2]
[334606278,1723328955289,-838.62777096,0.00018,2]
[334606279,1723328955310,-217.86716505,0.00018,2]
[334606280,1723328955333,-6.05235216,0.00018,2]
[334606283,1723328964143,-367.02027524,0.00018,2]
[334606284,1723328984965,366.234553,0.00018618,2]
[334606286,1723329014368,249.53774341,9.9e-05,2]
[334606342,1723329032391,-300.0,0.00018693,2]
[334606344,1723329032402,-1788.76831841,0.00018694,2]
[334606346,1723329032416,-2040.88070488,0.00018694,2]
[334606398,1723329038493,-21070.35097671,0.00018694,2]
[334606399,1723329038504,-493.2640819,0.00018695,2]
[334606400,1723329038514,-365.953266,0.00018904,2]
[334606401,1723329038525,-200.77393,0.00019086,2]
[334606402,1723329038537,-620.00209163,0.00019788,2]
[334606403,1723329038546,-267.8664955,0.00019878,2]
[334606404,1723329038556,-267.8664955,0.00019878,2]
[334606405,1723329038565,-503.24398635,0.0001989,2]
[334606406,1723329038575,-232.30580043,0.000199,2]
[334606407,1723329038585,-207.2629816,0.00019978,2]
[334606408,1723329038594,-267.8664955,0.00019978,2]
[334606409,1723329038603,-267.8664955,0.00019978,2]
[334606410,1723329038613,-206.9892163,0.00019978,2]
[334606411,1723329038622,-2211.06163624,0.0001999,11]
[334606412,1723329038631,-17829.27239654,0.0001999,2]
[334606413,1723329038642,-426.07685095,0.0001999,2]
[334606414,1723329038655,-1314.4,0.0001999,2]
[334606415,1723329038667,-5730.0,0.0001999,2]
[334606416,1723329038703,-3364.89214634,0.0001999,2]
[334606450,1723329043442,-150.0,0.00019278,2]
[334606451,1723329043451,-492.79668079,0.00019451,2]
[334606452,1723329043461,-267.8664955,0.000198,2]
[334606453,1723329043470,-9915.07295507,0.0001999,2]
[334606498,1723329046881,-471.04982511,0.00019547,2]
[334606499,1723329046890,-11133.06854254,0.0001999,2]
[334606500,1723329047009,-305.57509004,0.0001999,2]
[334606501,1723329049446,534.77348609,0.00012,2]
[334606502,1723329052402,205.20449904,0.00012,2]
[334606503,1723329056066,241.16751587,0.00012,2]
[334606504,1723329057705,165.59010032,0.00012,2]
[334606505,1723329057978,154.89860309,0.00012,2]
[334606506,1723329058515,200.26174856,0.00012,2]
[334606507,1723329060225,259.81805554,0.00012,2]
[334606508,1723329061038,373.08324694,0.00015,2]
[334606509,1723329061061,252.00501306,0.00015,2]
[334606510,1723329061083,153.86,0.00015,2]
[334606511,1723329061106,330.42144541,0.00015,2]
[334606512,1723329062894,159.94631735,0.00012,2]
[334606513,1723329062949,6422.96757484,0.00012,2]
[334606514,1723329065078,154.76012181,0.00012,2]
[334606515,1723329065990,157.80579925,0.00012,2]
[334606516,1723329066576,816.2198788,0.00012,2]
[334606517,1723329066904,156.8725802,0.00012,2]
[334606518,1723329068449,1382.92970052,0.00012,2]
[334606519,1723329071113,309.3349299,0.00012,2]
[334606520,1723329072399,231.27068883,0.00012,2]
[334606521,1723329072999,156.85476971,0.00012,2]
[334606522,1723329074866,492.79668079,0.00015,2]
[334606523,1723329075338,287.77266661,0.00012,2]
[334606524,1723329077884,154.76012181,0.00012,2]
[334606525,1723329077984,1091.99358002,0.00014,2]
[334606526,1723329078709,159.81409078,0.00013699,2]
[334606527,1723329084267,412.65409184,0.00012,2]
[334606528,1723329085238,263.68278929,0.00012,2]
[334606529,1723329085639,356.62824668,0.00012,2]
[334606530,1723329086332,944.21404731,0.00012,2]
[334606531,1723329088010,2140.12040888,0.00012,2]
[334606532,1723329089134,273.37336231,9.9e-05,2]
[334606533,1723329090665,942.61257937,0.00014545,2]
[334606534,1723329091374,180.53401892,0.00014545,2]
[334606535,1723329091750,327.12061822,0.00012,2]
[334606536,1723329102063,309.48934258,0.00014545,2]
[334606537,1723329103897,201.91226854,0.00014545,2]
[334606538,1723329104277,156.73199194,0.00014545,2]
[334606539,1723329104471,183.10678503,0.00014545,2]
[334606540,1723329104524,273.37336231,9.9e-05,2]
[334606541,1723329112353,522.39318645,0.00014545,2]
[334606542,1723329116989,157.83841247,0.00014545,2]
[334606543,1723329117619,532.27882907,0.00014545,2]
[334606544,1723329117694,342.05014288,0.00014545,2]
[334606545,1723329120002,273.37336231,9.9e-05,2]
[334606546,1723329121002,1109.36970541,0.00015,2]
[334606547,1723329121786,987.82646631,0.00014545,2]
[334606548,1723329130868,248.28919326,0.00015,2]
[334606549,1723329132246,412.65409184,0.00014545,2]
[334606550,1723329132887,154.76012181,0.00014545,2]
[334606551,1723329135716,273.37336231,9.9e-05,2]
[334606552,1723329149039,511.78874113,0.00014545,2]
[334606553,1723329152346,273.37336231,9.9e-05,2]
[334606554,1723329157538,165.91789162,0.00014545,2]
[334606556,1723329198217,5000.0,0.00027,120]
[334606557,1723329397842,165.252775,0.00014247,2]
[334606558,1723329424959,611.93757659,0.00014247,2]
[334606577,1723329596425,273.37336231,9.9e-05,2]
[334606579,1723329626472,349.87646796,0.00025,120]
[334606580,1723329637991,199.51471253,0.00017269,60]
[334606581,1723329673692,3088.0,0.0001999,120]
[334606582,1723329674148,3088.0,0.0001998,120]
[334606583,1723329674616,3088.0,0.0001997,120]
[334606584,1723329675078,3088.0,0.0002269,120]
[334606585,1723329675563,3088.0,0.0002268,120]
[334606586,1723329676024,3088.0,0.0002267,120]
[334606587,1723329676485,3088.0,0.0002576,120]
[334606588,1723329676970,3088.0,0.0002575,120]
[334606593,1723329793253,150.5,0.0001999,120]
[334606594,1723329793683,150.5,0.0001998,120]
[334606595,1723329794128,185.66,0.0001997,120]
[334606596,1723329794540,617.0,0.0001999,120]
[334606597,1723329795004,617.0,0.0001998,120]
[334606598,1723329795510,617.0,0.0001997,120]
[334606599,1723329796091,617.0,0.0002243,120]
[334606600,1723329796506,617.0,0.0002242,120]
[334606601,1723329796952,617.0,0.0002241,120]
[334606602,1723329797589,617.0,0.0002546,120]
[334606603,1723329798047,617.0,0.0002545,120]
[334606607,1723329821823,349.87646796,0.0002575,120]
[334606608,1723329850904,349.87646796,0.0002575,120]
[334606611,1723329903131,300.0,0.00025,60]
[334606612,1723329914529,150.5,0.0001998,120]
[334606613,1723329914988,150.5,0.0001997,120]
[334606614,1723329915444,150.5,0.0001996,120]
[334606615,1723329916161,150.5,0.0002229,120]
[334606616,1723329916900,150.5,0.0002228,120]
[334606617,1723329917441,150.5,0.0002227,120]
[334606618,1723329917886,206.553726,0.00014247,2]
[334606619,1723329917920,150.5,0.0002546,120]
[334606620,1723329918390,186.8,0.0002545,120]
[334606623,1723329957283,166.3509059,0.00014895,2]
[334606624,1723329957906,182.28563981,0.0002575,120]
[334606625,1723330002763,183.117276,0.00014886,2]
[334606626,1723330031469,230.01716275,0.00014886,2]
[334606627,1723330040135,-2126.36371818,0.0001571,2]
[334606629,1723330061875,3000.0,0.00014819,2]
[334606630,1723330113042,209.42556811,9.9e-05,2]
[334606631,1723330113074,63.9477942,9.9e-05,2]
[334606632,1723330123519,1092.30189436,0.00014999,2]
[334606634,1723330145109,-1991.50486571,0.00015708,2]
[334606635,1723330145134,-1109.67377554,0.00015708,2]
[334606636,1723330145155,-655.0412718,0.00015744,2]
[334606637,1723330145176,-301.21591624,0.00015744,2]
[334606638,1723330145198,-300.0,0.00015745,2]
[334606639,1723330145221,-300.0,0.00015745,2]
[334606640,1723330145242,-154.76012181,0.00015751,2]
[334606641,1723330145263,-503.65762201,0.00015751,2]
[334606642,1723330145283,-2709.99861051,0.00015751,2]